Cogmind - Beta 16.1 @@@ ROGUE MODE // 2026.03.04 @ 18:55:52 Player: Endlessblaze Result: Destroyed by G-47 Trooper with Particle Gun Performance ------------- Evolutions (2) 1000 Regions Visited (4) 800 Robots Destroyed (50) 250 Value Destroyed (1161) 1161 Prototype IDs (2) 40 Alien Tech Used (0) 0 Bonus (0) 0 TOTAL SCORE: 3251 Bonus ------- None Cogmind --------- Core Integrity 0/550 Matter 300/300 Energy 43/100 System Corruption 2% Temperature Cool (18) Movement Core (350) Ox6 Location -8/Storage Parts ------- > --- POWER (1) -------- (None) > --- PROPULSION (4) --- (None) > --- UTILITY (4) ------ Huge Storage Unit Advanced Weight Redist. System > --- WEAPON (2) ------- Hammer > --- INVENTORY (25) --- Large Matter Pod (150) Terrain Scanner Utility Shielding Hardened Light Armor Plating Hacking Suite Authchip [R/Combat] Authchip [R/Combat] Authchip [R/Combat] Authchip [Propulsion] Authchip [Processor] Authchip [Weapon] Peak State ------------ > --- POWER ------------ Heavy Ion Engine > --- PROPULSION ------- Aluminum Leg Aluminum Leg > --- UTILITY ---------- Small Storage Unit Targeting Computer Utility Shielding Hardened Light Armor Plating > --- WEAPON ----------- Beam Cannon Beam Cannon > --- INVENTORY -------- Large Matter Pod Terrain Scanner Utility Shielding Improved Medium Laser Shotgun Rocket Launcher Hammer [Rating: 13] Favorites ----------- Power Nuclear Core Engine Improved Ion Engine Power Core Nuclear Core Propulsion Aluminum Leg Leg Aluminum Leg Utility Utility Shielding Device Heat Sink Storage Huge Storage Unit Processor Targeting Computer Protection Utility Shielding Weapon Beam Cannon Energy Gun Improved Medium Laser Energy Cannon Beam Cannon Ballistic Gun Light Assault Rifle Launcher Rocket Launcher Impact Weapon Hammer Build | -11 -10 -9 -8 -8 ------- Run | Yrd Mat Mat Mat Sto Slots Evolved 4 | . . 2 2 . Power . | . . . . . Propulsion 2 | . . . 2 . Utility 2 | . . 2 . . Weapon . | . . . . . Parts Attached 26 | 6 3 10 5 2 Power 5 | 1 1 2 1 . Engine 4 | 1 1 2 . . Core 1 | . . . 1 . Reactor . | . . . . . Propulsion 5 | 2 1 2 . . Treads . | . . . . . Leg 5 | 2 1 2 . . Wheel . | . . . . . Hover . | . . . . . Flight . | . . . . . Utility 7 | 1 1 4 . 1 Device 2 | . . 1 . 1 Storage 2 | 1 . 1 . . Processor 1 | . . 1 . . Hackware . | . . . . . Protection 2 | . 1 1 . . Artifact . | . . . . . Weapon 9 | 2 . 2 4 1 Energy Gun 1 | . . . 1 . Energy Cannon 2 | . . 2 . . Ballistic Gun 3 | 2 . . 1 . Ballistic Cannon . | . . . . . Launcher 1 | . . . 1 . Special Weapon . | . . . . . Impact Weapon 2 | . . . 1 1 Slashing Weapon . | . . . . . Piercing Weapon . | . . . . . Special Melee Weapon . | . . . . . Unidentified Prototypes . | . . . . . Parts Lost 14 | . . 1 9 4 Power 3 | . . 1 1 1 Propulsion 2 | . . . 2 . Utility 3 | . . . 1 2 Weapon 6 | . . . 5 1 Highest Loss Streak 4 | . . 1 2 4 To Critical Strikes . | . . . . . Average Backups 6 | . 5 7 6 10 Power . | . . . . . Propulsion . | . . . . . Utility 3 | . 1 2 4 9 Weapon 2 | . 2 3 2 1 Tool/Special . | . . . . . Unused Backups 12 | . . 3 . 9 Power . | . . . . . Propulsion . | . . . . . Utility 9 | . . . . 9 Weapon 3 | . . 3 . . Tool/Special . | . . . . . Average Slot Usage (%) 76 | . 95 94 60 51 Engine 6 | . 13 9 2 . Core 3 | . . . 5 8 Leg 12 | . 27 21 2 . Device 5 | . . 1 9 16 Storage 10 | . 14 11 9 9 Processor 6 | . . 10 8 . Protection 12 | . 10 18 9 7 Energy Gun 1 | . . . 3 . Energy Cannon 7 | . . 20 1 . Ballistic Gun 7 | . 27 1 6 . Impact Weapon 1 | . . . . 9 Peak Build Rating 13 | 6 7 13 13 13 Average Rating 9 | 4 6 10 10 11 On Entrance 6 | . 6 7 12 8 Avg Prop Armor Cover (%) 12 | 30 9 7 . . Naked Turns . | . . . . . Heaviest Build 97 | 10 13 96 97 91 Greatest Support 20 | 20 20 20 20 12 Greatest Overweight (x) 31 | . 1 5 31 7 Average Overweight (x) 2 | . . . 19 6 Largest Inventory Capacity 25 | 8 8 25 25 25 Average Capacity 16 | 7 8 8 25 25 Most Carried 12 | . 7 8 8 12 Average Carried 6 | . 5 7 6 10 Final Capacity 25 | 8 8 25 25 25 Final Carried 11 | . 7 8 7 11 Class Distribution -------------------- 100% | Mutant Dominant Class ---------------- Mutant | -10/Materials Mutant | -9/Materials Mutant | -8/Materials Mutant | -8/Storage Resources | -11 -10 -9 -8 -8 ----------- Run | Yrd Mat Mat Mat Sto Matter Collected 964 | 178 . 564 201 21 Remotely . | . . . . . Salvage Created 1692 | 20 84 817 732 39 Parts 103 | 4 4 51 43 1 Haulers Intercepted . | . . . . . Recyclers Shooed 1 | 1 . . . . Parts Field Recycled . | . . . . . Retrieved Matter . | . . . . . Parts Self-Destructed . | . . . . . Prevented . | . . . . . Parts Restored . | . . . . . Kills | -11 -10 -9 -8 -8 ------- Run | Yrd Mat Mat Mat Sto Combat Hostiles Destroyed 33 | . 2 19 12 . Guns 10 | . 2 4 4 . Cannons 16 | . . 15 1 . AOE 7 | . . . 7 . Classes Destroyed 10 | 1 1 5 3 . Worker 5 | . . 3 . 2 Builder 1 | . . . 1 . Tunneler 2 | 1 . 1 . . Recycler 5 | . . 1 4 . Operator 1 | . . . 1 . Watcher 3 | . . 2 1 . Swarmer 11 | . . 7 4 . Grunt 14 | . 2 9 3 . Sentry 7 | . . 3 4 . Hunter 1 | . . . 1 . Best Kill Streak 5 | 1 2 4 5 1 Combat Bots Only 4 | . 2 4 4 . Max Kills in Single Turn 4 | 1 1 1 4 1 Gunslinging . | . . . . . Exploded 4 | . . . 4 . Melee . | . . . . . Uniques/NPCs Destroyed . | . . . . . Combat | -11 -10 -9 -8 -8 -------- Run | Yrd Mat Mat Mat Sto Hostile Shots Fired 273 | . 29 118 95 31 Missed 75 | . 13 28 27 7 Hits 198 | . 16 90 68 24 Projectile 198 | . 16 90 68 24 Critical Strikes 9 | . . 3 4 2 Actively Blocked 1 | . . . 1 . Damage Taken 2602 | . 177 908 1123 394 Core 802 | . 50 190 351 211 Absorbed by Shields . | . . . . . Redirected to Shielding 50 | . 2 5 38 5 Regen/Repaired (Parts) 194 | . . 194 . . Core Remaining (%) 77 | 100 80 52 . . Volleys Fired 130 | 13 14 59 44 . Largest 2 | 2 2 2 2 . Hottest 120 | 40 40 120 93 . Shots Fired 233 | 26 27 112 68 . Gun 127 | 26 27 16 58 . Cannon 101 | . . 96 5 . Launcher 5 | . . . 5 . Special . | . . . . . Kinetic 102 | 26 27 16 33 . Thermal 126 | . . 96 30 . Explosive 5 | . . . 5 . Electromagnetic . | . . . . . Robot Hit Streak 12 | 6 4 10 12 . Robot Miss Streak 6 | 2 4 6 4 . Penetration Max . | . . . . . Secondary Targets 2 | . 1 1 . . Max Gunslinging Chain 1 | . 1 1 . . Shots Hit Robots 154 | 18 13 65 53 5 Core Hits 79 | 5 7 31 35 1 Critical Kills . | . . . . . Critical Parts Destroyed 1 | . . . . 1 Critical Strikes 3 | . . . 2 1 Burn 1 | . . . 1 . Destroy 1 | . . . 1 . Smash 1 | . . . . 1 Melee Attacks 8 | . . . 3 5 Impact 8 | . . . 3 5 Slashing . | . . . . . Piercing . | . . . . . Sneak Attacks 3 | . . . . 3 Combat Hostiles . | . . . . . Follow-up Attacks . | . . . . . Damage Inflicted 2949 | 126 106 1065 1433 219 Guns 1063 | 126 106 80 751 . Cannons 1054 | . . 985 69 . Explosions 613 | . . . 613 . Melee 219 | . . . . 219 Ramming . | . . . . . Kinetic 769 | 126 106 80 457 . Thermal 1348 | . . 985 363 . Explosive 613 | . . . 613 . Electromagnetic . | . . . . . Impact 219 | . . . . 219 Slashing . | . . . . . Piercing . | . . . . . Highest Corruption 2 | . . . . 2 Average Corruption 2 | . . . . 2 Corruption Purged . | . . . . . Corruption Blocked . | . . . . . Effects 1 | . . . . 1 Message Errors 1 | . . . . 1 Overload Shots . | . . . . . Overflow Damage 68 | . . . 18 50 Projectiles . | . . . . . Explosions 18 | . . . 18 . Melee 50 | . . . . 50 Knockbacks . | . . . . . Impact . | . . . . . Kinetic . | . . . . . Secondary . | . . . . . Self-Inflicted Damage 140 | . . . 140 . Shots 4 | . . . 4 . Rammed . | . . . . . Targets Rammed . | . . . . . Kicked . | . . . . . Crushed . | . . . . . Highest Temperature 503 | . 25 503 5 3 Average Temperature 167 | . 10 183 1 3 Received Heat Transfer 972 | . 87 300 333 252 Effects 12 | . . 12 . . Shutdowns 2 | . . 2 . . Energy Bleed 1 | . . 1 . . Interference 5 | . . 5 . . Matter Decay 2 | . . 2 . . Short Circuit 2 | . . 2 . . Siege Activations . | . . . . . Martial Activations . | . . . . . Shielding Activations . | . . . . . Robots Disrupted . | . . . . . Combat Hostiles . | . . . . . Robots Corrupted 1 | . . . . 1 Combat Hostiles . | . . . . . Parts Fried 2 | . . . . 2 Impact Corruptions 3 | . . . . 3 Robots Melted . | . . . . . Combat Hostiles . | . . . . . Parts Melted 1 | . . . 1 . Heat Transferred 2923 | . . 2072 851 . Parts Sabotaged . | . . . . . Parts Stolen . | . . . . . Parts Stripped . | . . . . . Power Chain Reactions . | . . . . . Alert | -11 -10 -9 -8 -8 ------- Run | Yrd Mat Mat Mat Sto Maximum Alert Level . | . . . . . Low Security (%) 100 | 100 100 100 100 100 Level 1 . | . . . . . Level 2 . | . . . . . Level 3 . | . . . . . Level 4 . | . . . . . Level 5 . | . . . . . High Security . | . . . . . Max Security . | . . . . . Peak Influence 199 | 5 40 173 199 20 Initial 55 | . . . 55 . Average 46 | . 4 58 68 1 Influence Increases 1044 | 5 78 515 406 40 Destroy 0b10 Robot/C 660 | . 40 380 240 . Destroy 0b10 Robot/NC 85 | 5 . 35 35 10 Destroy Leader 156 | . 10 74 72 . Trap Triggered on 0b10 10 | . 10 . . . Successful Hack 34 | . 18 11 5 . Disable Machine 15 | . . . 15 . Destroy Structure 39 | . . . 39 . Lose Combat Pursuer 45 | . . 15 . 30 Influence Decreases 1029 | 5 78 384 537 25 Entered New Map 76 | . . . 76 . Time Decay 870 | 5 78 374 398 15 Lost Part 83 | . . 10 63 10 Squads Dispatched 3 | . . 1 2 . Investigation 1 | . . 1 . . Extermination . | . . . . . Reinforcement 2 | . . . 2 . Assault . | . . . . . Garrison . | . . . . . Intercept . | . . . . . Searches Triggered . | . . . . . Construction Impeded . | . . . . . Haulers Reinforced . | . . . . . Active Scanning Responses . | . . . . . Cargo Convoy Interrupts . | . . . . . Stealth | -11 -10 -9 -8 -8 --------- Run | Yrd Mat Mat Mat Sto Distress Signals 8 | . 1 3 4 . Communications Jammed . | . . . . . Distress Signals . | . . . . . Times Spotted 69 | . 13 27 25 4 Peak Tracking Total 6 | . 5 6 5 3 Tactical Retreats 2 | . . 1 . 1 Traps | -11 -10 -9 -8 -8 ------- Run | Yrd Mat Mat Mat Sto Traps Triggered 2 | . 1 . . 1 Indirectly . | . . . . . Trap Hack Attempts . | . . . . . Triggered . | . . . . . Disarmed . | . . . . . Reprogrammed 5 | . 5 . . . Reused 1 | . 1 . . . Traps Extracted . | . . . . . Installed . | . . . . . Triggered 1 | . 1 . . . Machines | -11 -10 -9 -8 -8 ---------- Run | Yrd Mat Mat Mat Sto Machines Disabled 1 | . . . 1 . Max in Single Turn 1 | . . . 1 . Machines Repaired . | . . . . . Machines Dismantled . | . . . . . Machines Sabotaged . | . . . . . Overloaded Fab Kills . | . . . . . Hacking | -11 -10 -9 -8 -8 --------- Run | Yrd Mat Mat Mat Sto Machines Accessed 11 | . 4 6 1 . Terminals 8 | . 3 4 1 . Fabricators . | . . . . . Repair Stations 1 | . . 1 . . Recycling Units 1 | . 1 . . . Scanalyzers 1 | . . 1 . . Garrison Access . | . . . . . Total Hacks 45 | . 19 22 4 . Successful 35 | . 15 17 3 . Failed 10 | . 4 5 1 . Catastrophic 3 | . 1 2 . . Database Lockouts . | . . . . . Manual 27 | . 11 12 4 . Terminals 30 | . 15 11 4 . Fabricators . | . . . . . Repair Stations 5 | . . 5 . . Recycling Units 4 | . 4 . . . Scanalyzers 6 | . . 6 . . Garrison Access . | . . . . . Terminal Hacks 6 | . 5 . 1 . Emergency Access Points 1 | . 1 . . . Terminal Index 1 | . 1 . . . Locate Traps 1 | . 1 . . . Reprogram Traps 1 | . 1 . . . Recall Reinforcements 1 | . . . 1 . Zone Layout 1 | . 1 . . . Fabricator Hacks . | . . . . . Repair Station Hacks 4 | . . 4 . . Scan Component 2 | . . 2 . . Repair 2 | . . 2 . . Recycling Unit Hacks 2 | . 2 . . . Report Inventory 1 | . 1 . . . Retrieve Components 1 | . 1 . . . Scanalyzer 6 | . . 6 . . Insert Component 2 | . . 2 . . Analyze 3 | . . 3 . . Retrieve Study 1 | . . 1 . . Garrison Access Hacks . | . . . . . Unauthorized Hacks 17 | . 8 7 2 . Terminals 14 | . 6 6 2 . Track 7 | . 3 3 1 . Botnet 7 | . 3 3 1 . Fabricators . | . . . . . Repair Stations 1 | . . 1 . . Patch 1 | . . 1 . . Recycling Units 2 | . 2 . . . Monitor 1 | . 1 . . . Mask 1 | . 1 . . . Scanalyzers . | . . . . . Garrison Access . | . . . . . Data Cores Recovered . | . . . . . Used . | . . . . . Hacking Detections 11 | . 4 6 1 . Full Trace Events . | . . . . . Feedback Events . | . . . . . Feedback Blocked . | . . . . . Robot Schematics Acquired . | . . . . . Robots Built . | . . . . . Authchips . | . . . . . Time . | . . . . . Total Robot Build Rating . | . . . . . Part Schematics Acquired 2 | . . 2 . . Parts Built . | . . . . . Authchips . | . . . . . Time . | . . . . . Total Part Build Rating . | . . . . . Part Studies Acquired 1 | . . 1 . . Parts Repaired 2 | . . 2 . . Time 52 | . . 52 . . Parts Recycled . | . . . . . Recycled Matter . | . . . . . Retrieved Matter . | . . . . . Retrieved Components 5 | . 5 . . . Parts Scanalyzed 2 | . . 2 . . Part Schematics Acquired 2 | . . 2 . . Parts Damaged . | . . . . . Bothacking | -11 -10 -9 -8 -8 ------------ Run | Yrd Mat Mat Mat Sto Used RIF Installer . | . . . . . Robots Hacked . | . . . . . Non-combat . | . . . . . Combat . | . . . . . Robot Hacks Applied . | . . . . . Relay Couplers Released . | . . . . . Fabnet Peak Effective % . | . . . . . Robots Rewired . | . . . . . Allies Hacked . | . . . . . Hacks Repelled . | . . . . . Allies | -11 -10 -9 -8 -8 -------- Run | Yrd Mat Mat Mat Sto Total Allies . | . . . . . Largest Group . | . . . . . Highest-Rated Group . | . . . . . Highest-Rated Ally . | . . . . . Total Orders . | . . . . . Ally Attacks . | . . . . . Total Damage . | . . . . . Kills . | . . . . . Allies Corrupted . | . . . . . Allies Melted . | . . . . . Intel | -11 -10 -9 -8 -8 ------- Run | Yrd Mat Mat Mat Sto Active Infowar (turns) . | . . . . . Robot Analysis Total . | . . . . . Derelict Logs Recovered . | . . . . . Drone Launches . | . . . . . Drone Recoveries . | . . . . . Exploration | -11 -10 -9 -8 -8 ------------- Run | Yrd Mat Mat Mat Sto Turns Passed 3174 | 93 503 1023 1251 304 Spaces Moved 980 | 55 308 456 102 59 Core 139 | 21 . 1 58 59 Treads . | . . . . . Legs 841 | 34 308 455 44 . Wheels . | . . . . . Hover . | . . . . . Flight . | . . . . . Fastest Speed 50 | 50 120 120 400 350 Average Speed 262 | 93 122 169 1112 396 Slowest Speed 1600 | 120 190 400 1600 400 Overloaded Moves . | . . . . . Propulsion Burnouts . | . . . . . Robots Hopped . | . . . . . Potential Cave-ins . | . . . . . Cave-ins Triggered . | . . . . . Exploration Rate (%) 23 | 3 50 39 14 10 Regions Visited 4 Branch Regions 1 Pre-discovered Areas . | . . . . . Known Exits Taken . | . . . . . Unknown Exits Taken 4 | 1 1 1 1 . Scrap Searched . | . . . . . Spaces Dug 1 | . . . 1 . Terrain Destroyed 42 | . . . 42 . Melee 1 | . . . 1 . Projectile . | . . . . . AOE 41 | . . . 41 . Terrain Rammed . | . . . . . Walls Destroyed . | . . . . . Machines Disabled . | . . . . . Actions | -11 -10 -9 -8 -8 --------- Run | Yrd Mat Mat Mat Sto Total 1363 | 73 410 601 158 121 Wait 181 | . 78 53 1 49 Move 976 | 54 307 455 101 59 Hop . | . . . . . Pick Up 20 | . 5 6 3 6 Fast Attach 19 | 6 4 8 1 . Attach 7 | . . 1 4 2 Detach 1 | . . 1 . . Swap 9 | . 2 6 1 . Drop 12 | . . 12 . . Fire 130 | 13 14 59 44 . Melee 8 | . . . 3 5 Ram . | . . . . . Kick . | . . . . . Crush . | . . . . . Escape Stasis . | . . . . . Rewire . | . . . . . Trap . | . . . . . Miscellaneous . | . . . . . Route ------- -11/Scrapyard -10/Materials (discovered 2 exits: *Mat / [*Min]) -9/Materials -8/Materials -8/Storage History --------- Turn | Location | Event 5 | -11/Scrapyard | Discovered new exit (range 16) 94 | -11/Scrapyard | Entered Materials 178 | -10/Materials | Discovered new exit (range 14) 301 | -10/Materials | Build established: Mutant 560 | -10/Materials | Discovered new exit (range 4) 597 | -10/Materials | Entered another Materials area 597 | -9/Materials | Evolved 2 slots: Utility x2 791 | -9/Materials | Repaired Beam Cannon 818 | -9/Materials | Repaired Aluminum Leg 1531 | -9/Materials | Discovered new exit (range 16) 1620 | -9/Materials | Entered another Materials area 1620 | -8/Materials | Evolved 2 slots: Propulsion x2 2821 | -8/Materials | Discovered new exit (range 5) 2847 | -8/Materials | Core integrity fell below 50% 2871 | -8/Materials | Entered Storage 3157 | -8/Storage | Core integrity fell below 20% 3175 | -8/Storage | Destroyed by G-47 Trooper with Particle Gun Last Messages --------------- 03149_ R-06 Scavenger collects Wheel. 03150_ Critical hit (Burn: +37). 03152_ Nuclear Core destroyed. 03152_ K-01 Serf cleans the Terminal. 03157_ Critical hit (Burn: +37). 03160_ K-01 Serf collects debris. 03162_ G-50 Soldier suffers critical hit (Smash). 03162_ Destroyed Hvy. Laser. 03162_ G-50 Soldier system corrupted by crushing effect. 03164_ K-01 Serf collects debris. 03169_ Sneak attack on K-01 Serf. 03169_ Destroyed Lgt. Ion Engine. 03169_ Destroyed Med. Matter Pod. 03169_ K-01 Serf system corrupted by crushing effect. 03170_ K-01 Serf system terminally corrupted. 03170_ Wheel fried. 03170_ Hammer destroyed. 03173_ Acquired 11 matter. Map ----- +----------------------------------------------------+ | | | ?????????????????????????????????????? | | ?????????????????????????????????????? | | ?????????????????????????????????????? | | ?????????????????????????????????????? | | ?????????????????????????????????????? | | ?????????????????????????????????????? | | ?????????????????????????#####???????? | | ?????????????????????????# #???????? | | ?????????????????????????# ######??? | | ?????????????????????????# # " #??? | | ?????????????????????????#^^ # #??? | | ?????????????????????????# + " #??? | | ?????????????????????????#^ #T####??? | | ?????????????????????????# ###?????? | | ?????????????????????????# #???????? | | ?????????????????????????# #???????? | | ?????????????????????????# #???????? | | ?????????????????????????# #???????? | | ?????????????????????????# ######### | | ?????????????????????????# # # | | ?????????????????????????# # """ # | | ?????????????????????????# # """ # | | ?????????????????????????# + """ # | | ??????????/####T#+##+##### # # | | ????????? % gr @ # """ # | | ????????? g + """ # | | ????????? kk g # """ # | | ??????????#######+############ # | | ?????????????????????????????# # | | ?????????????????????????????# # | | ?????????????????????????????######### | | ?????????????????????????????????????? | | ?????????????????????????????????????? | | ?????????????????????????????????????? | | ?????????????????????????????????????? | | ?????????????????????????????????????? | | ?????????????????????????????????????? | | ?????????????????????????????????????? | | ?????????????????????????????????????? | | ?????????????????????????????????????? | | ?????????????????????????????????????? | | ?????????????????????????????????????? | | ?????????????????????????????????????? | | ?????????????????????????????????????? | | ?????????????????????????????????????? | | ?????????????????????????????????????? | | ?????????????????????????????????????? | | ?????????????????????????????????????? | | ?????????????????????????????????????? | +----------------------------------------------------+ Best States ------------- Heat Dissipation 41 Energy Generation 14 Energy Capacity 280 Matter Stores 300 Matter Capacity 300 Sight Range 16 Terrain Scan Density 10 Additional Mass Support 9 Armor Coverage 150 Utility Shielding 33 Evasion (%) 55 Targeting Accuracy 5 Authchip Count 6 Item Schematics ----------------- Imp. Medium Laser | -9/Materials | Scanalyzed Hvy. Ion Engine | -9/Materials | Scanalyzed Robot Schematics ------------------ None Fabricated ------------ Nothing Repaired ---------- Beam Cannon | 38% | -9/Materials Aluminum Leg | 36% | -9/Materials Studied --------- Imp. Ion Engine | -9/Materials | Hacked Alien Tech Used ----------------- None Achievements -------------- None Challenges ------------ None Game ------ Seed SiegePhysicsSink Manual? 0 Play Time 00:21:37 Cumulative 45.4 hours Start 2026.03.04 @ 18:34:28 End 2026.03.04 @ 18:55:52 Sessions 1 Manual Loads 0 Difficulty Rogue Special Mode None Game No. 65 Rogue 65 Adventurer 0 Explorer 0 Win Type - Total 0 Types 0/0/0/0/0/0/0/0/0/0 Lore% 41 Gallery% 31 Achievement% 22 Wizard Run 0 Options --------- Layout 1 ASCII 0 Keyboard 0 Movement Arrows Keybinds 0 Fullscreen 1 Font 16/SmallcapsGlow Map View 55x38 Zoom Use 0% Tactical HUD 1 Map Filters NONE Filters NONE Steam 1 RUN: b46e92fe-8660-4575-b16f-47f3ae79750a